bitfinex/quotes_SOLUSD_20240813
["timestamp","ask_amount","ask_price","bid_price","bid_amount"]
[1723589336835,0.25098,147.47,147.37,16.4132]
[1723589336836,0.12549,147.46,147.42,6.7829]
[1723589337040,20.37647,147.46,147.42,6.7829]
[1723589337738,20.0,147.46,147.43,6.7824]
[1723589338347,30.92,147.47,147.44,6.7824]
[1723589338535,6.6578,147.49,147.39,6.4941]
[1723589338732,20.0,147.48,147.4,65.12549]
[1723589339051,20.0,147.48,147.4,20.0]
[1723589339222,20.0,147.48,147.45,6.7817]
[1723589339851,20.0,147.48,147.44,6.7823]
[1723589340254,20.0,147.48,147.4,20.0]
[1723589340429,0.25098,147.47,147.43,6.7828]
[1723589343924,0.25098,147.47,147.45,6.7819]
[1723589343925,0.12549,147.47,147.45,6.7819]
[1723589345848,20.0,147.48,147.45,6.7819]
[1723589346364,20.0,147.49,147.45,6.7819]
[1723589347860,32.38,147.49,147.45,6.7819]
[1723589348348,20.0,147.49,147.48,6.7805]
[1723589348955,20.0,147.49,147.47,6.781]
[1723589349132,20.0,147.5,147.47,6.781]
[1723589350258,20.0,147.5,147.43,16.4533]
[1723589350259,20.0,147.5,147.48,6.7805]
[1723589350435,20.12549,147.52,147.48,6.7805]
[1723589350637,0.12549,147.51,147.48,6.7805]
[1723589350939,6.90419,147.52,147.47,6.7809]
[1723589352248,20.0,147.51,147.47,6.7809]
[1723589354448,32.38,147.51,147.45,6.7817]
[1723589354750,6.90519,147.5,147.45,6.7817]
[1723589355448,6.90519,147.5,147.46,6.7814]
[1723589356483,0.12549,147.5,147.46,6.7814]
[1723589356857,32.38,147.51,147.47,6.7809]
[1723589363264,32.38,147.51,147.43,16.4533]
[1723589363265,32.38,147.51,147.48,6.7804]
[1723589363467,20.0,147.51,147.49,6.78]
[1723589363662,20.0,147.52,147.48,6.7804]
[1723589366181,26.7788,147.52,147.48,6.7804]
[1723589367264,26.7787,147.52,147.48,6.7804]
[1723589367783,0.12549,147.54,147.5,6.7794]
[1723589367966,20.25098,147.54,147.5,6.7794]
[1723589368165,20.0,147.54,147.5,6.7794]
[1723589375092,6.7765,147.57,147.52,6.7786]
[1723589375300,20.37647,147.56,147.52,6.7786]
[1723589377282,19.1575,147.55,147.5,6.7795]
[1723589380382,12.38,147.55,147.51,6.779]
[1723589381286,12.38,147.53,147.46,15.6052]
[1723589381493,12.38,147.53,147.47,20.0]
[1723589381879,12.38,147.53,147.49,6.7797]
[1723589382494,12.38,147.53,147.5,6.7796]
[1723589384401,12.38,147.53,147.51,6.7791]
[1723589385010,12.38,147.55,147.52,6.7787]
[1723589385193,20.37647,147.56,147.53,6.7781]
[1723589387610,20.37647,147.56,147.52,6.7786]
[1723589388416,12.38,147.55,147.5,6.7793]
[1723589388602,19.1573,147.55,147.5,6.7793]
[1723589388914,12.38,147.55,147.51,6.7791]
[1723589390082,0.12549,147.54,147.49,6.78]
[1723589390283,12.38,147.51,147.47,6.7807]
[1723589390688,12.38,147.51,147.46,15.6052]
[1723589390689,12.38,147.51,147.48,6.7805]
[1723589391119,12.38,147.51,147.47,6.7809]
[1723589391318,12.38,147.49,147.42,15.6355]
[1723589391520,19.1602,147.49,147.42,15.6355]
[1723589391818,6.7805,147.48,147.42,15.6355]
[1723589391994,19.1612,147.47,147.42,15.6355]
[1723589392197,12.38,147.45,147.42,6.7832]
[1723589392618,12.38,147.47,147.44,6.7824]
[1723589393502,12.38,147.47,147.45,6.7817]
[1723589393928,12.38,147.47,147.39,12.38]
[1723589393929,12.38,147.47,147.44,6.7824]
[1723589394220,12.38,147.47,147.38,15.6355]
[1723589394410,0.25098,147.46,147.39,20.0]
[1723589394730,12.38,147.47,147.4,1.35671485]
[1723589394898,12.38,147.47,147.39,20.0]
[1723589395101,0.12549,147.46,147.39,20.0]
[1723589395299,0.37647,147.46,147.39,20.0]
[1723589395605,12.38,147.49,147.39,32.38]
[1723589395800,20.0,147.48,147.4,45.0]
[1723589396007,20.0,147.48,147.47,6.781]
[1723589396432,20.0,147.48,147.46,6.7814]
[1723589396604,20.12549,147.5,147.46,6.7814]
[1723589397124,12.38,147.49,147.44,6.782]
[1723589397334,20.0,147.48,147.44,6.782]
[1723589398006,20.0,147.48,147.45,6.7818]
[1723589399036,20.0,147.48,147.46,6.7814]
[1723589399536,20.0,147.48,147.45,6.7818]
[1723589402307,12.38,147.47,147.39,20.0]
[1723589402507,6.7816,147.46,147.39,20.0]
[1723589402714,12.38,147.47,147.42,6.7833]
[1723589403033,20.0,147.48,147.45,6.7815]
[1723589404034,20.0,147.48,147.39,32.38]
[1723589404236,20.0,147.48,147.4,45.0]
[1723589404437,20.0,147.48,147.39,32.38]
[1723589404438,12.38,147.47,147.39,32.38]
[1723589404622,19.1611,147.47,147.42,6.7832]
[1723589406818,12.38,147.47,147.43,6.7826]
[1723589411560,19.1611,147.47,147.43,6.7826]
[1723589412048,19.1611,147.47,147.42,6.7832]
[1723589412556,12.38,147.45,147.41,6.7837]
[1723589413435,0.12549,147.44,147.41,6.7837]
[1723589413649,0.12549,147.44,147.42,6.7832]
[1723589414930,0.37647,147.46,147.43,6.7827]
[1723589415134,0.12549,147.45,147.43,6.7827]
[1723589415845,0.12549,147.45,147.34,16.1945]
[1723589416048,0.12549,147.44,147.35,12.38]
[1723589416362,0.37647,147.44,147.41,6.7836]
[1723589416542,0.25098,147.44,147.41,6.7836]
[1723589418668,12.63098,147.45,147.37,13.73685674]
[1723589418669,0.12549,147.45,147.37,13.73685674]
[1723589418844,20.0,147.45,147.43,6.7828]
[1723589419162,20.0,147.45,147.44,6.7824]
[1723589419660,6.0249,147.48,147.44,6.7822]
[1723589419870,20.0,147.46,147.44,6.7822]
[1723589420240,28.98147459,147.52,147.41,15.2236]
[1723589420449,26.7795,147.51,147.46,6.7813]
[1723589420658,19.1597,147.5,147.41,27.6036]
[1723589420858,20.0,147.49,147.45,6.7819]
[1723589422072,26.7802,147.49,147.43,6.7824]
[1723589422276,19.53707,147.48,147.43,6.7827]
[1723589422580,45.12549,147.47,147.43,6.7827]
[1723589422749,0.12549,147.46,147.43,6.7827]
[1723589423078,19.41158,147.48,147.44,6.7823]
[1723589423376,0.12549,147.47,147.44,6.7823]
[1723589424175,12.38,147.48,147.41,15.2236]
[1723589424354,12.38,147.48,147.45,6.7816]
[1723589424754,12.38,147.48,147.43,6.7825]
[1723589424981,12.38,147.48,147.44,6.7823]
[1723589425987,0.12549,147.47,147.44,6.7823]
[1723589428777,0.12549,147.47,147.41,15.2236]
[1723589428962,0.12549,147.47,147.43,6.7827]
[1723589429372,45.37647,147.47,147.43,6.7827]
[1723589430082,45.37647,147.47,147.44,6.7822]
[1723589430288,0.37647,147.47,147.41,15.2236]
[1723589430455,0.37647,147.47,147.43,6.7825]
[1723589431053,0.37647,147.47,147.44,6.7823]
[1723589433761,12.38,147.48,147.45,6.7819]
[1723589433980,12.38,147.48,147.41,15.2236]
[1723589433981,20.12549,147.49,147.41,15.2236]
[1723589434875,20.12549,147.49,147.46,6.7813]
[1723589435284,20.12549,147.49,147.45,6.7818]
[1723589437363,12.50549,147.48,147.44,6.7823]
[1723589437771,0.12549,147.47,147.44,6.7823]
[1723589441388,12.38,147.48,147.45,6.7818]
[1723589441574,20.0,147.49,147.42,1.35653113]
[1723589441765,41.36147459,147.52,147.48,6.7805]
[1723589441969,20.0,147.51,147.48,6.7805]
[1723589442871,20.0,147.51,147.47,6.7809]
[1723589456230,26.7793,147.51,147.42,12.38]
[1723589456407,26.7792,147.51,147.46,6.7811]
[1723589456815,26.7792,147.51,147.47,6.7809]
[1723589457406,20.0,147.51,147.47,6.7809]
[1723589461342,15.0939,147.55,147.45,12.38]
[1723589461676,15.0939,147.55,147.46,15.9563]
[1723589461677,20.0,147.54,147.46,15.9563]
[1723589461806,7.08497448,147.57,147.47,57.38]
[1723589462001,6.7765,147.57,147.52,6.7786]
[1723589463145,0.12549,147.56,147.52,6.7786]
[1723589463821,0.37647,147.56,147.52,6.7786]
[1723589464023,20.37647,147.56,147.52,6.7786]
[1723589464224,20.37647,147.56,147.47,57.38]
[1723589464225,6.0338,147.6,147.49,18.6763]
[1723589464425,6.7755,147.59,147.51,12.38]
[1723589464739,6.7755,147.59,147.52,1.35562083]
[1723589465239,18.4138,147.6,147.52,1.35562083]
[1723589465240,12.8088,147.6,147.52,1.35562083]
[1723589465464,12.8088,147.6,147.54,12.38]
[1723589465662,6.775,147.6,147.52,13.73562083]
[1723589465959,6.775,147.6,147.53,1.35551998]
[1723589466345,6.775,147.6,147.52,13.73551961]
[1723589466561,0.37647,147.59,147.52,13.73551961]
[1723589466760,6.775,147.6,147.52,13.73551961]
[1723589466761,7.08383695,147.61,147.54,12.38]
[1723589466967,20.0,147.6,147.54,12.38]
[1723589467146,20.0,147.6,147.53,22.1459]
[1723589467551,20.0,147.61,147.53,22.1459]
[1723589468241,51.90089,147.6,147.53,22.1459]
[1723589468470,0.12549,147.59,147.53,22.1459]
[1723589471747,0.12549,147.59,147.56,6.7768]
[1723589477371,0.12549,147.57,147.53,16.0443]
[1723589477669,0.37647,147.57,147.53,22.8222]
[1723589477858,20.37647,147.57,147.53,22.8222]
[1723589478261,12.38,147.56,147.53,6.7779]
[1723589484291,6.7756,147.59,147.54,6.7777]
[1723589484477,20.0,147.58,147.5,1.35553906]
[1723589484793,20.0,147.58,147.56,6.7768]
[1723589484977,32.38,147.58,147.55,6.7773]
[1723589485182,32.38,147.58,147.54,6.7777]
[1723589486674,32.38,147.58,147.55,6.7772]
[1723589487670,45.50196,147.57,147.53,6.7779]
[1723589487864,0.25098,147.57,147.54,6.7776]
[1723589488073,0.12549,147.57,147.54,6.7776]
[1723589488675,0.25098,147.57,147.53,6.7782]
[1723589489462,12.38,147.56,147.52,6.7786]
[1723589489670,19.1569,147.56,147.52,6.7786]
[1723589489893,12.38,147.54,147.49,22.446]
[1723589490072,12.38,147.51,147.47,6.781]
[1723589490580,0.12549,147.55,147.45,15.4822]
[1723589490786,77.88196,147.55,147.52,6.7787]
[1723589490983,32.88196,147.55,147.53,6.7782]
[1723589491282,32.75647,147.55,147.52,6.7786]
[1723589491494,32.75647,147.55,147.51,6.779]
[1723589495580,0.12549,147.52,147.45,15.4822]
[1723589495788,12.38,147.51,147.47,6.7806]
[1723589496215,12.38,147.51,147.49,6.7797]
[1723589496380,0.25098,147.52,147.49,6.7797]
[1723589496885,0.25098,147.52,147.48,6.7802]
[1723589497193,12.63098,147.51,147.48,6.7802]
[1723589498497,12.63098,147.51,147.49,6.7801]
[1723589499107,12.63098,147.51,147.48,6.7804]
[1723589499699,12.63098,147.51,147.49,6.7801]
[1723589499898,0.12549,147.5,147.46,6.7813]
[1723589500103,19.1601,147.49,147.45,6.7815]
[1723589500409,19.1611,147.47,147.42,6.7828]
[1723589500603,12.38,147.45,147.42,6.7828]
[1723589501113,12.38,147.45,147.37,15.2241]
[1723589501285,0.12549,147.44,147.37,15.2241]
[1723589501904,0.12549,147.44,147.41,6.7837]
[1723589502324,0.37647,147.44,147.4,6.7841]
[1723589502607,45.37647,147.44,147.4,6.7841]
[1723589502809,12.38,147.43,147.4,6.7841]
[1723589502982,0.12549,147.42,147.39,6.7846]
[1723589503184,0.50196,147.42,147.39,6.7846]
[1723589503412,0.50196,147.42,147.4,6.7842]
[1723589506742,0.50196,147.42,147.39,6.7846]
[1723589507017,45.50196,147.42,147.37,15.2241]
[1723589507231,12.38,147.41,147.33,15.9476]
[1723589507518,0.25098,147.4,147.34,20.0]
[1723589508594,0.25098,147.4,147.39,6.7847]
[1723589508927,45.25098,147.42,147.4,6.7841]
[1723589509130,12.38,147.45,147.41,6.7838]
[1723589509313,20.0,147.44,147.41,6.7838]
[1723589509498,20.0,147.44,147.42,6.7832]
[1723589510298,20.0,147.44,147.36,12.38]
[1723589511003,0.12549,147.43,147.36,12.38]
[1723589512327,0.25098,147.43,147.36,12.38]
[1723589512498,57.63098,147.43,147.39,6.7843]
[1723589512703,0.12549,147.42,147.4,6.7841]
[1723589512920,45.25098,147.43,147.4,6.7841]
[1723589514828,0.37647,147.42,147.39,6.7847]
[1723589515139,12.63098,147.41,147.34,20.0]
[1723589515427,45.25098,147.4,147.33,15.9476]
[1723589515633,0.12549,147.39,147.33,15.9476]
[1723589515928,0.25098,147.39,147.33,15.9476]
[1723589516236,20.0,147.44,147.35,12.38]
[1723589516409,6.5285,147.47,147.37,12.38]
[1723589516410,32.38,147.46,147.37,12.38]
[1723589516605,32.38,147.46,147.38,1.35681968]
[1723589516810,32.38,147.46,147.42,6.7829]
[1723589518449,0.12549,147.45,147.42,6.7829]
[1723589518642,45.50196,147.45,147.42,6.7829]
[1723589518822,20.0,147.44,147.42,6.7829]
[1723589520255,0.12549,147.45,147.43,6.7828]
[1723589520448,20.50196,147.46,147.42,6.7832]
[1723589524332,20.50196,147.46,147.43,6.7826]
[1723589524534,20.50196,147.46,147.38,23.90674182]
[1723589524733,6.1751,147.51,147.39,77.38]
[1723589524934,6.7802,147.49,147.45,6.7819]
[1723589525129,20.0,147.48,147.45,6.7819]
[1723589526255,20.0,147.48,147.39,32.38]
[1723589526456,12.38,147.48,147.4,1.35662924]
[1723589526631,20.0,147.47,147.44,6.7822]
[1723589526974,20.0,147.47,147.45,6.7817]
[1723589527254,20.0,147.49,147.45,6.7817]
[1723589527462,0.12549,147.48,147.45,6.7817]
[1723589530253,0.12549,147.48,147.44,6.7823]
[1723589532568,12.88196,147.48,147.39,32.38]
[1723589532748,6.7823,147.45,147.39,32.38]
[1723589533058,6.90709,147.46,147.42,6.7833]
[1723589534750,0.12549,147.46,147.42,6.7833]
[1723589534955,0.37647,147.46,147.42,6.7833]
[1723589537355,7.15797,147.46,147.42,6.7833]
[1723589538041,19.53797,147.46,147.42,6.7833]
[1723589538375,12.75647,147.46,147.42,6.7833]
[1723589539341,12.75647,147.46,147.43,6.7827]
[1723589542966,12.75647,147.46,147.39,21.35671989]
[1723589543179,51.90759,147.45,147.41,6.7837]
[1723589543355,0.12549,147.44,147.41,6.7837]
[1723589543555,19.41338,147.44,147.38,16.5043]
[1723589544094,12.63098,147.44,147.4,6.7842]
[1723589545662,0.25098,147.43,147.4,6.7842]
[1723589546388,0.12549,147.42,147.4,6.7842]
[1723589547281,12.63098,147.42,147.34,22.7425]
[1723589547496,12.63098,147.42,147.38,6.7848]
[1723589547787,0.12549,147.42,147.36,1.35704269]
[1723589548780,0.12549,147.42,147.4,6.7841]
[1723589548963,0.12549,147.42,147.35,20.0]
[1723589549870,0.12549,147.42,147.39,6.7846]
[1723589550866,0.12549,147.42,147.35,20.0]
[1723589554591,0.12549,147.42,147.39,6.7846]
[1723589556703,0.12549,147.42,147.41,6.7838]
[1723589556991,6.6515,147.45,147.42,6.7833]
[1723589557175,20.0,147.44,147.42,6.7833]
[1723589557969,20.0,147.45,147.42,6.7833]
[1723589558167,18.4047,147.49,147.45,6.7819]
[1723589558897,25.1848,147.49,147.45,6.7819]
[1723589559320,18.4047,147.49,147.45,6.7819]
[1723589559479,19.1597,147.5,147.46,6.7814]
[1723589559885,19.1597,147.5,147.45,6.7818]
[1723589560682,20.0,147.49,147.45,6.7818]
[1723589561288,0.12549,147.48,147.45,6.7818]
[1723589562775,20.0,147.49,147.41,1.35646787]
[1723589562776,12.75647,147.5,147.46,6.7814]
[1723589562976,12.63098,147.5,147.47,6.7809]
[1723589563184,0.12549,147.5,147.47,6.7809]
[1723589563489,0.25098,147.5,147.47,6.7809]
[1723589566219,20.0,147.51,147.48,6.7804]
[1723589566384,20.0,147.51,147.47,6.7809]
[1723589567310,26.7793,147.51,147.46,6.7813]
[1723589567688,0.12549,147.5,147.46,6.7813]
[1723589569503,0.25098,147.5,147.45,15.3098]
[1723589569714,12.50549,147.49,147.41,15.3098]
[1723589569919,0.12549,147.48,147.42,20.0]
[1723589570210,12.50549,147.49,147.43,1.35638925]
[1723589570414,19.1602,147.49,147.42,20.0]
[1723589570637,0.12549,147.48,147.44,6.782]
[1723589570999,0.12549,147.48,147.45,6.7819]
[1723589571830,0.25098,147.48,147.44,6.7823]
[1723589572317,45.25098,147.48,147.44,6.7823]
[1723589573130,0.25098,147.48,147.41,16.66635394]
[1723589573417,0.25098,147.48,147.41,29.04635394]
[1723589573626,0.25098,147.48,147.46,6.7813]
[1723589573920,0.25098,147.48,147.45,6.7818]
[1723589575418,0.12549,147.48,147.45,6.7818]
[1723589575724,77.75647,147.49,147.45,6.7818]
[1723589575904,77.63098,147.49,147.45,6.7818]
[1723589581436,32.38,147.49,147.46,6.7814]
[1723589581617,20.0,147.49,147.46,6.7814]
[1723589581818,20.25098,147.5,147.46,6.7814]
[1723589582228,12.38,147.47,147.41,15.3098]
[1723589582418,12.38,147.47,147.44,6.7823]
[1723589582617,0.12549,147.48,147.45,6.7819]
[1723589583543,0.12549,147.48,147.44,6.7823]
[1723589583746,0.12549,147.48,147.41,15.3098]
[1723589583747,12.38,147.47,147.41,15.3098]
[1723589583946,12.38,147.47,147.44,6.7823]
[1723589584240,12.38,147.47,147.43,6.7828]
[1723589584916,12.38,147.47,147.44,6.7822]
[1723589588327,12.38,147.47,147.43,6.7828]
[1723589592842,0.25098,147.46,147.37,15.2186]
[1723589593055,0.25098,147.46,147.42,6.7832]
[1723589593927,0.12549,147.44,147.41,6.7836]
[1723589595859,0.25098,147.45,147.38,1.35678427]
[1723589596055,0.25098,147.45,147.43,6.7828]
[1723589596262,45.25098,147.45,147.42,6.7832]
[1723589596762,12.38,147.44,147.38,1.35678427]
[1723589596960,0.12549,147.43,147.4,6.7841]
[1723589597468,0.12549,147.43,147.37,15.2186]
[1723589597469,0.12549,147.43,147.41,6.7836]
[1723589597835,12.38,147.44,147.41,6.7836]
[1723589599372,12.38,147.44,147.4,6.7841]
[1723589599955,19.1624,147.44,147.4,6.7841]
[1723589600146,0.12549,147.43,147.4,6.7841]
[1723589600677,0.12549,147.43,147.37,16.57549572]
[1723589600678,12.38,147.42,147.37,15.2186]
[1723589601275,19.1633,147.42,147.38,6.7851]
[1723589602655,19.1633,147.42,147.37,6.7855]
[1723589602987,7.15927,147.43,147.38,6.7849]
[1723589603158,12.63098,147.42,147.38,6.7849]
[1723589603480,12.38,147.4,147.36,6.786]
[1723589603691,12.38,147.4,147.36,6.7859]
[1723589603858,6.89328,147.42,147.38,6.7849]
[1723589604181,19.27328,147.42,147.38,6.7849]
[1723589605660,19.27328,147.42,147.33,28.7706]
[1723589605861,19.27328,147.42,147.34,20.0]
[1723589606778,26.05658,147.42,147.37,6.7856]
[1723589607092,19.27328,147.42,147.39,6.7845]
[1723589607462,19.27328,147.42,147.38,6.7851]
[1723589607659,12.38,147.4,147.34,6.787]
[1723589607862,12.38,147.38,147.35,6.7863]
[1723589608056,12.38,147.38,147.33,16.3906]
[1723589608257,12.38,147.36,147.32,6.7879]
[1723589608482,12.38,147.36,147.3,6.7884]
[1723589608688,12.38,147.34,147.31,6.7884]
[1723589608877,12.38,147.34,147.3,6.7888]
[1723589610782,12.38,147.34,147.26,0.50998944]
[1723589610783,12.38,147.34,147.29,6.7893]
[1723589610991,12.38,147.32,147.29,6.7893]
[1723589612558,0.12549,147.35,147.26,0.50998944]
[1723589612764,6.6423,147.37,147.27,13.73765494]
[1723589612765,20.0,147.36,147.27,13.73765494]
[1723589612991,6.7843,147.4,147.34,6.7866]
[1723589613168,12.38,147.39,147.3,17.13405509]
[1723589613365,12.38,147.39,147.36,6.786]
[1723589613570,12.38,147.39,147.3,15.7767]
[1723589614390,6.0006,147.41,147.31,12.38]
[1723589614591,22.97526221,147.42,147.33,12.38]
[1723589614801,6.0006,147.45,147.36,15.7767]
[1723589614802,18.3806,147.45,147.36,15.7767]
[1723589614987,12.38,147.43,147.36,15.7767]
[1723589615171,12.38,147.44,147.39,6.7843]
[1723589615373,12.38,147.44,147.38,6.7851]
[1723589615572,12.38,147.42,147.32,36.5453]
[1723589615789,6.7841,147.41,147.35,6.7861]
[1723589616201,6.7841,147.41,147.36,6.786]
[1723589616402,0.12549,147.39,147.32,16.5453]
[1723589616606,45.25098,147.39,147.34,6.7866]
[1723589616778,32.38,147.4,147.36,6.7859]
[1723589617780,12.38,147.42,147.39,6.7843]
[1723589617989,12.38,147.42,147.38,6.7851]
[1723589618194,20.0,147.41,147.38,6.7851]
[1723589618516,20.0,147.42,147.37,6.7855]
[1723589618821,32.38,147.42,147.37,6.7855]
[1723589619000,20.0,147.42,147.34,12.38]
[1723589619192,20.0,147.43,147.4,6.7842]
[1723589619400,6.0006,147.45,147.4,6.7842]
[1723589620105,12.7825,147.45,147.4,6.7842]
[1723589620611,12.38,147.47,147.39,15.8536]
[1723589620824,12.38,147.47,147.4,6.7841]
[1723589620990,6.7824,147.44,147.39,6.7847]
[1723589623114,12.50549,147.43,147.39,6.7847]
[1723589623324,19.28849,147.43,147.38,6.7851]
[1723589623494,0.12549,147.42,147.38,6.7851]
[1723589623814,45.25098,147.42,147.38,6.7851]
[1723589624019,12.50549,147.43,147.39,6.7846]
[1723589624199,0.12549,147.43,147.4,6.7841]
[1723589624396,6.781,147.47,147.42,6.7832]
[1723589624593,23.1024,147.49,147.43,1.35661141]
[1723589624794,23.1024,147.49,147.45,6.7816]
[1723589624795,6.5536,147.49,147.45,6.7816]
[1723589625398,13.3337,147.49,147.44,6.7823]
[1723589626013,20.0,147.48,147.44,6.7823]
[1723589627307,26.7806,147.48,147.44,6.7823]
[1723589627721,26.7806,147.48,147.43,6.7827]
[1723589629525,20.0,147.48,147.45,6.7818]
[1723589629725,19.1592,147.51,147.46,6.7814]
[1723589630023,6.7796,147.5,147.45,6.7818]
[1723589630317,6.7801,147.49,147.44,6.7822]
[1723589630735,6.7801,147.49,147.43,6.7827]
[1723589630736,6.7807,147.48,147.43,6.7827]
[1723589631435,6.7807,147.48,147.44,6.7824]
[1723589632014,6.7807,147.48,147.43,6.7828]
[1723589632614,6.7815,147.46,147.41,22.4588]
[1723589633036,6.7811,147.47,147.42,6.7832]
[1723589633242,6.7816,147.46,147.41,22.459]
[1723589633422,6.7816,147.46,147.42,6.7832]
[1723589633630,6.7811,147.47,147.42,6.7832]
[1723589635436,19.1606,147.48,147.44,6.7823]
[1723589635637,20.0,147.47,147.43,1.3565089]
[1723589635936,20.0,147.47,147.45,6.7819]
[1723589636320,20.0,147.48,147.45,6.7819]
[1723589637350,20.0,147.48,147.43,8.1389089]
[1723589637517,20.0,147.48,147.43,6.7824]
[1723589637715,26.7806,147.48,147.43,6.7824]
[1723589638210,6.7811,147.47,147.42,6.7832]
[1723589639215,26.7806,147.48,147.43,6.7826]
[1723589640019,6.7813,147.47,147.42,6.7833]
[1723589640225,6.7818,147.46,147.41,22.459]
[1723589640546,6.7818,147.46,147.42,6.7833]
[1723589640917,19.1611,147.47,147.42,6.7833]
[1723589641970,19.1611,147.47,147.42,8.13979796]
[1723589642155,26.7806,147.48,147.42,1.35649796]
[1723589642447,26.7806,147.48,147.43,1.35649707]
[1723589642946,6.7811,147.47,147.42,6.7829]
[1723589643455,6.7819,147.45,147.41,15.6754]
[1723589643749,12.38,147.47,147.41,15.6754]
[1723589644045,6.7819,147.45,147.41,22.4591]
[1723589645159,6.7819,147.45,147.3,27.06218439]
[1723589645160,12.38,147.43,147.38,6.7848]
[1723589645331,6.7834,147.42,147.38,6.7848]
[1723589645736,6.7838,147.41,147.37,22.3345]
[1723589646071,19.1629,147.43,147.38,6.7851]
[1723589646237,12.38,147.43,147.4,6.7842]
[1723589646436,19.28709,147.46,147.41,6.7834]
[1723589646760,20.12549,147.45,147.41,6.7834]
[1723589646935,26.90749,147.45,147.4,6.7842]
[1723589647263,26.90749,147.45,147.41,6.7837]
[1723589647648,26.90749,147.45,147.4,6.7842]
[1723589648549,6.7824,147.44,147.4,6.7842]
[1723589648754,20.0,147.43,147.4,6.7842]
[1723589649488,26.7829,147.43,147.39,6.7846]
[1723589649756,32.38,147.43,147.38,6.7849]
[1723589649958,6.7835,147.42,147.37,22.3344]
[1723589650342,39.1629,147.43,147.38,6.785]
[1723589653160,39.1629,147.43,147.37,15.549]
[1723589653161,6.7835,147.42,147.37,22.3345]
[1723589653957,6.7835,147.42,147.37,6.7855]
[1723589654154,19.28929,147.41,147.35,6.7861]
[1723589654347,19.28929,147.41,147.3,15.549]
[1723589654348,6.786,147.37,147.3,15.549]
[1723589654678,6.91109,147.38,147.33,6.7874]
[1723589654972,39.41658,147.37,147.32,6.7879]
[1723589655338,6.7861,147.36,147.31,6.7883]
[1723589655760,6.91289,147.33,147.28,6.7897]
[1723589656756,26.08098,147.35,147.3,6.7888]
[1723589657003,25.95549,147.35,147.26,28.3747]
[1723589657161,0.25098,147.34,147.3,6.7887]
[1723589657358,72.03798,147.34,147.29,6.7892]
[1723589657861,0.12549,147.33,147.29,6.7892]
[1723589658774,12.63098,147.33,147.26,15.9947]
[1723589658990,20.25098,147.32,147.26,15.9947]
[1723589659273,27.03908,147.32,147.28,6.7897]
[1723589659576,20.25098,147.32,147.28,6.7897]
[1723589660574,20.0,147.32,147.26,15.9947]
[1723589660794,20.0,147.32,147.3,6.7886]
[1723589660977,20.0,147.34,147.28,12.38]
[1723589661180,0.12549,147.37,147.29,1.35754642]
[1723589661374,32.38,147.38,147.28,12.38]
[1723589661782,6.7856,147.37,147.32,6.7877]
[1723589662672,0.25098,147.36,147.32,6.7877]
[1723589663772,20.25098,147.36,147.32,6.7877]
[1723589665297,52.03788,147.35,147.26,15.9947]